Cogmind - Beta 13 @@@ ROGUE MODE // 2024.04.24 @ 17:56:06 Player: AntinDisguise Result: Self-destructed Performance ------------- Evolutions (1) 500 Regions Visited (2) 400 Robots Destroyed (15) 75 Value Destroyed (257) 257 Prototype IDs (1) 20 Alien Tech Used (0) 0 Bonus (0) 0 TOTAL SCORE: 1252 Bonus ------- None Cogmind --------- Core Integrity 348/400 Matter 135/300 Energy 7/100 System Corruption 0% Temperature Cool (63) Movement Walking (120) Location -9/Materials Parts ------- > --- POWER (2) -------- (None) > --- PROPULSION (2) --- Aluminum Leg > --- UTILITY (3) ------ Small Storage Unit Weight Redist. System Sensor Array > --- WEAPON (2) ------- Improved Medium Laser Improved Medium Laser > --- INVENTORY (8) ---- Light Treads Grenade Launcher Peak State ------------ > --- POWER ------------ (None) > --- PROPULSION ------- Aluminum Leg > --- UTILITY ---------- Small Storage Unit Weight Redist. System Sensor Array > --- WEAPON ----------- Improved Medium Laser Improved Medium Laser > --- INVENTORY -------- Light Treads Grenade Launcher [Rating: 11] Favorites ----------- Power Ion Engine Engine Ion Engine Propulsion Light Treads Treads Light Treads Leg Aluminum Leg Utility Small Storage Unit Device Sensor Array Storage Small Storage Unit Weapon Assault Rifle Energy Gun Improved Medium Laser Ballistic Gun Assault Rifle Launcher Grenade Launcher Build | -11 -10 -9 ------- Run | Yrd Mat Mat Slots Evolved 2 | . . 2 Power 1 | . . 1 Propulsion . | . . . Utility 1 | . . 1 Weapon . | . . . Parts Attached 14 | 6 5 3 Power 2 | 1 1 . Engine 2 | 1 1 . Core . | . . . Reactor . | . . . Propulsion 4 | 2 2 . Treads 2 | 2 . . Leg 2 | . 2 . Wheel . | . . . Hover . | . . . Flight . | . . . Utility 3 | 1 1 1 Device 2 | . 1 1 Storage 1 | 1 . . Processor . | . . . Hackware . | . . . Protection . | . . . Artifact . | . . . Weapon 5 | 2 1 2 Energy Gun 2 | . . 2 Energy Cannon . | . . . Ballistic Gun 2 | 2 . . Ballistic Cannon . | . . . Launcher 1 | . 1 . Special Weapon . | . . . Impact Weapon . | . . . Slashing Weapon . | . . . Piercing Weapon . | . . . Special Melee Weapon . | . . . Unidentified Prototypes 1 | . . 1 Parts Lost 5 | . 2 3 Power 1 | . . 1 Propulsion 2 | . 1 1 Utility . | . . . Weapon 2 | . 1 1 Highest Loss Streak 3 | . 2 3 To Critical Strikes . | . . . Average Slot Usage (%) 86 | . 87 82 Engine 12 | . 14 10 Treads 16 | . 22 . Leg 9 | . 4 22 Device 8 | . 4 18 Storage 13 | . 14 11 Ballistic Gun 20 | . 24 10 Launcher 4 | . 2 10 Naked Turns . | . . . Heaviest Build 16 | 12 16 16 Greatest Support 40 | 40 40 26 Greatest Overweight (x) . | . . . Average Overweight (x) . | . . . Largest Inventory Capacity 8 | 8 8 8 Average Capacity 7 | 7 8 8 Most Carried 3 | 3 3 3 Average Carried . | . . 1 Final Capacity 8 | 8 8 8 Final Carried 2 | . 1 2 Class Distribution -------------------- 68% | Mutant 31% | Scavenger-Mutant Dominant Class ---------------- Mutant | -10/Materials Scavenger-Mutant | -9/Materials Resources | -11 -10 -9 ----------- Run | Yrd Mat Mat Matter Collected 423 | 296 127 . Remotely . | . . . Salvage Created 419 | 82 305 32 Parts 33 | 3 21 9 Haulers Intercepted 1 | . . 1 Recyclers Shooed . | . . . Parts Field Recycled . | . . . Retrieved Matter . | . . . Parts Self-Destructed . | . . . Prevented . | . . . Kills | -11 -10 -9 ------- Run | Yrd Mat Mat Combat Hostiles Destroyed 8 | . 8 . Guns 8 | . 8 . Classes Destroyed 6 | 1 4 1 Builder 4 | . 1 3 Hauler 1 | . . 1 Recycler 1 | 1 . . Watcher 1 | . 1 . Swarmer 3 | . 3 . Grunt 5 | . 5 . Best Kill Streak 6 | 1 6 3 Combat Bots Only 5 | . 5 . Max Kills in Single Turn 2 | 1 2 2 Gunslinging 1 | . 1 . Exploded . | . . . Melee . | . . . Uniques/NPCs Destroyed . | . . . Combat | -11 -10 -9 -------- Run | Yrd Mat Mat Hostile Shots Fired 116 | . 70 46 Missed 33 | . 17 16 Damage Taken 937 | . 599 338 Core 156 | . 104 52 Absorbed by Shields . | . . . Core Remaining (%) 79 | 100 58 . Volleys Fired 45 | 8 28 9 Largest 2 | 2 2 2 Hottest 112 | 40 40 112 Shots Fired 81 | 16 48 17 Gun 75 | 16 48 11 Cannon . | . . . Launcher 6 | . . 6 Special . | . . . Kinetic 71 | 16 48 7 Thermal 4 | . . 4 Explosive 6 | . . 6 Electromagnetic . | . . . Robot Hit Streak 10 | 3 10 9 Robot Miss Streak 3 | 2 3 1 Penetration Max . | . . . Secondary Targets 3 | . 3 . Max Gunslinging Chain 1 | . 1 . Shots Hit Robots 56 | 10 34 12 Core Hits 23 | 2 14 7 Critical Kills . | . . . Critical Parts Destroyed . | . . . Critical Strikes . | . . . Melee Attacks . | . . . Impact . | . . . Slashing . | . . . Piercing . | . . . Sneak Attacks . | . . . Combat Hostiles . | . . . Follow-up Attacks . | . . . Damage Inflicted 1004 | 126 461 417 Guns 698 | 126 461 111 Cannons . | . . . Explosions 306 | . . 306 Melee . | . . . Ramming . | . . . Kinetic 645 | 126 461 58 Thermal 53 | . . 53 Explosive 306 | . . 306 Electromagnetic . | . . . Impact . | . . . Slashing . | . . . Piercing . | . . . Highest Corruption . | . . . Average Corruption . | . . . Corruption Purged . | . . . Corruption Blocked . | . . . Overload Shots . | . . . Overflow Damage 3 | . . 3 Projectiles . | . . . Explosions 3 | . . 3 Melee . | . . . Knockbacks . | . . . Impact . | . . . Kinetic . | . . . Secondary . | . . . Self-Inflicted Damage 43 | . . 43 Shots 3 | . . 3 Rammed . | . . . Targets Rammed . | . . . Kicked . | . . . Crushed . | . . . Highest Temperature 63 | . 20 63 Average Temperature 9 | . 5 21 Received Heat Transfer 396 | . 306 90 Siege Activations . | . . . Robots Corrupted . | . . . Combat Hostiles . | . . . Parts Fried . | . . . Impact Corruptions . | . . . Robots Melted . | . . . Combat Hostiles . | . . . Parts Melted . | . . . Heat Transferred 111 | . . 111 Parts Sabotaged . | . . . Parts Stolen . | . . . Parts Stripped . | . . . Power Chain Reactions . | . . . Alert | -11 -10 -9 ------- Run | Yrd Mat Mat Peak Influence 234 | 5 234 175 Initial 98 | . 3 98 Average 114 | . 139 124 Maximum Alert Level 1 | . 1 . Low Security (%) 80 | 100 68 100 Level 1 19 | . 31 . Level 2 . | . . . Level 3 . | . . . Level 4 . | . . . Level 5 . | . . . High Security . | . . . Max Security . | . . . Squads Dispatched 4 | . 2 2 Investigation 2 | . 2 . Extermination . | . . . Reinforcement 2 | . . 2 Assault . | . . . Garrison . | . . . Intercept . | . . . Searches Triggered . | . . . Construction Impeded 1 | . . 1 Haulers Reinforced . | . . . Active Scanning Responses . | . . . Cargo Convoy Interrupts . | . . . Stealth | -11 -10 -9 --------- Run | Yrd Mat Mat Distress Signals 1 | . 1 . Communications Jammed . | . . . Distress Signals . | . . . Times Spotted 19 | . 11 8 Peak Tracking Total 10 | . 6 10 Tactical Retreats . | . . . Traps | -11 -10 -9 ------- Run | Yrd Mat Mat Traps Triggered 1 | . 1 . Indirectly . | . . . Trap Hack Attempts . | . . . Triggered . | . . . Disarmed . | . . . Reprogrammed . | . . . Reused . | . . . Traps Extracted . | . . . Installed . | . . . Triggered . | . . . Machines | -11 -10 -9 ---------- Run | Yrd Mat Mat Machines Disabled . | . . . Max in Single Turn . | . . . Machines Repaired . | . . . Machines Dismantled . | . . . Machines Sabotaged . | . . . Overloaded Fab Kills . | . . . Hacking | -11 -10 -9 --------- Run | Yrd Mat Mat Machines Accessed 3 | . 3 . Terminals 3 | . 3 . Fabricators . | . . . Repair Stations . | . . . Recycling Units . | . . . Scanalyzers . | . . . Garrison Access . | . . . Total Hacks 6 | . 6 . Successful 2 | . 2 . Failed 4 | . 4 . Catastrophic . | . . . Database Lockouts . | . . . Manual . | . . . Terminals 6 | . 6 . Fabricators . | . . . Repair Stations . | . . . Recycling Units . | . . . Scanalyzers . | . . . Garrison Access . | . . . Terminal Hacks 2 | . 2 . Locate Traps 1 | . 1 . Transport Status 1 | . 1 . Fabricator Hacks . | . . . Repair Station Hacks . | . . . Recycling Unit Hacks . | . . . Scanalyzer . | . . . Garrison Access Hacks . | . . . Unauthorized Hacks . | . . . Terminals . | . . . Fabricators . | . . . Repair Stations . | . . . Recycling Units . | . . . Scanalyzers . | . . . Garrison Access . | . . . Data Cores Recovered . | . . . Used . | . . . Hacking Detections 2 | . 2 . Full Trace Events 1 | . 1 . Feedback Events . | . . . Feedback Blocked . | . . . Robot Schematics Acquired . | . . . Robots Built . | . . . Authchips . | . . . Time . | . . . Total Robot Build Rating . | . . . Part Schematics Acquired . | . . . Parts Built . | . . . Authchips . | . . . Time . | . . . Total Part Build Rating . | . . . Parts Repaired . | . . . Time . | . . . Parts Recycled . | . . . Recycled Matter . | . . . Retrieved Matter . | . . . Retrieved Components . | . . . Parts Scanalyzed . | . . . Part Schematics Acquired . | . . . Parts Damaged . | . . . Bothacking | -11 -10 -9 ------------ Run | Yrd Mat Mat Used RIF Installer . | . . . Robots Hacked . | . . . Non-combat . | . . . Combat . | . . . Robot Hacks Applied . | . . . Relay Couplers Released . | . . . Fabnet Peak Effective % . | . . . Robots Rewired . | . . . Allies Hacked . | . . . Hacks Repelled . | . . . Allies | -11 -10 -9 -------- Run | Yrd Mat Mat Total Allies . | . . . Largest Group . | . . . Highest-Rated Group . | . . . Highest-Rated Ally . | . . . Total Orders . | . . . Ally Attacks . | . . . Total Damage . | . . . Kills . | . . . Allies Corrupted . | . . . Allies Melted . | . . . Intel | -11 -10 -9 ------- Run | Yrd Mat Mat Robot Analysis Total . | . . . Derelict Logs Recovered . | . . . Drone Launches . | . . . Drone Recoveries . | . . . Exploration | -11 -10 -9 ------------- Run | Yrd Mat Mat Turns Passed 578 | 91 351 136 Spaces Moved 296 | 41 174 81 Core 9 | 9 . . Treads 165 | 32 133 . Legs 122 | . 41 81 Wheels . | . . . Hover . | . . . Flight . | . . . Fastest Speed 50 | 50 120 120 Average Speed 140 | 135 150 120 Slowest Speed 160 | 160 160 120 Overloaded Moves . | . . . Propulsion Burnouts . | . . . Robots Hopped . | . . . Cave-ins Triggered . | . . . Exploration Rate (%) 17 | 5 31 15 Regions Visited 2 Branch Regions . Pre-discovered Areas . | . . . Known Exits Taken . | . . . Unknown Exits Taken 2 | 1 1 . Scrap Searched . | . . . Spaces Dug . | . . . Terrain Destroyed 45 | . . 45 Melee . | . . . Projectile . | . . . AOE 45 | . . 45 Terrain Rammed . | . . . Walls Destroyed . | . . . Machines Disabled . | . . . Actions | -11 -10 -9 --------- Run | Yrd Mat Mat Total 377 | 60 215 102 Wait 9 | . 3 6 Move 293 | 40 172 81 Hop . | . . . Pick Up 14 | 6 5 3 Fast Attach . | . . . Attach 12 | 6 4 2 Detach 1 | . 1 . Swap 2 | . 1 1 Drop 1 | . 1 . Fire 45 | 8 28 9 Melee . | . . . Ram . | . . . Kick . | . . . Crush . | . . . Escape Stasis . | . . . Rewire . | . . . Trap . | . . . Miscellaneous . | . . . Route ------- -11/Scrapyard -10/Materials (discovered 2 exits: [*Mat] / [*Min]) -9/Materials History --------- Turn | Location | Event 6 | -11/Scrapyard | Discovered new exit (range 16) 92 | -11/Scrapyard | Entered Materials 116 | -10/Materials | Discovered new exit (range 10) 305 | -10/Materials | Build established: Mutant 343 | -10/Materials | Discovered new exit (range 12) 443 | -10/Materials | Entered another Materials area 443 | -9/Materials | Evolved 2 slots: Power x1, Utility x1 579 | -9/Materials | Self-destructed Last Messages --------------- U-05 Engineer lays Concrete. U-05 Engineer builds a Wall. R-06 Scavenger collects Wheel. U-05 Engineer lays Concrete. K-01 Serf collects debris. U-05 Engineer lays Concrete. R-06 Scavenger collects Wheel. U-05 Engineer lays Concrete. A-02 Transporter destroyed. Acquired Prototype Energy Gun. Ion Engine destroyed. Identified Imp. Medium Laser. Assault Rifle destroyed. Aluminum Leg destroyed. R-06 Scavenger collects Faulty Imp. Medium Laser. Critical hit (Burn: +37). Acquired Imp. Medium Laser. Critical hit (Burn: +37). R-06 Scavenger collects Faulty Imp. Medium Laser. S-10 Pest destroyed. Map ----- +----------------------------------------------------+ | ?????????????????? ###+#########+############ #? | | ?????????????????? #? | | ????????????????? #? | | ????????????????? | | ????????????????# ##/########### | | ????????????????# # #?????# | | ???????????????? + #####?###### | | ???????????????????????######### """ #??????? | | ???????????????????????????????# """ #??????? | | ???????????????????????????????# """ ##?????? | | ???????????????????????????????# #?????? | | ???????????????????????????????####### ##?????? | | ?????????????????????????????######## #?????? | | ???????????????? ????????????# #?????? | | ?????????????? ????????????# # #?????? | | ??????????????= ???????????# #?????? | | ?????????????= ??????????# # #?????? | | ????????????? ?????????####### #####?? | | ???????????? s =#######????????# = #?? | | ???????????? %[ #????????### !% #?? | | ???????????? #????????# %= #?? | | ???????????? s ############ #?? | | ?????????????? # ## #?? | | ?????????????????? w # """ ## ### | | ???????????????###+### "T" ! ## | | ?????????????# @ r w | | ?????????????# ]% r""" """ ######### | | ?????????????# *#Y""" """ #???????? | | ?????????????# # """ """ #????????? | | ?????????????# ]] # #????????? | | ?????????????# ]] # ####### ###?????????? | | ?????????????# ] ?# #?????###????????????? | | ?????????????# ??+ #??????????????????????? | | ?????????????# ???#####??????????????????????? | | ?????????????###Y#???????????????????????????????? | | ???????????????#?????????????????????????????????? | | ?????????????????????????????????????????????????? | | ?????????????????????????????????????????????????? | | ?????????????????????????????????????????????????? | | ?????????????????????????????????????????????????? | | ?????????????????????????????????????????????????? | | ?????????????????????????????????????????????????? | | ?????????????????????????????????????????????????? | | ?????????????????????????????????????????????????? | | ?????????????????????????????????????????????????? | | ?????????????????????????????????????????????????? | | ?????????????????????????????????????????????????? | | ?????????????????????????????????????????????????? | | ?????????????????????????????????????????????????? | | ?????????????????????????????????????????????????? | +----------------------------------------------------+ Best States ------------- Heat Dissipation 28 Energy Generation 10 Energy Capacity 250 Matter Stores 288 Matter Capacity 300 Sight Range 16 Robot Scan Range 14 Terrain Scan Density 10 Additional Mass Support 6 Evasion (%) 55 Recoil Reduction 2 Item Schematics ----------------- None Robot Schematics ------------------ None Fabricated ------------ Nothing Alien Tech Used ----------------- None Achievements -------------- None Challenges ------------ None Game ------ Seed StorageRestorationBiocell Manual? 0 Play Time 00:06:52 Cumulative 24.2 hours Start 2024.04.24 @ 14:51:41 End 2024.04.24 @ 17:56:06 Sessions 1 Manual Loads 0 Difficulty Rogue Special Mode None Game No. 63 Rogue 61 Adventurer 2 Explorer 0 Win Type - Total 0 Types 0/0/0/0/0/0/0/0/0 Lore% 22 Gallery% 29 Achievement% 22 Wizard Run 0 Options --------- Layout 1 ASCII 0 Keyboard 0 Movement Mouse Keybinds 0 Fullscreen 1 Font 16/SmallcapsGlow Map View 27x19 Zoom Use 96% Tactical HUD 0 Map Filters NONE Filters NONE Steam 1 RUN: 8fe4b8f9-27ea-4f7c-9117-a16a07bc5eee